bitfinex/quotes_SOLUSD_20241223
["timestamp","ask_amount","ask_price","bid_price","bid_amount"]
[1734923715660,6.1783,182.62,182.51,38.27784358]
[1734923715661,38.27784358,182.58,182.51,38.27784358]
[1734923716022,38.27784358,182.6,182.51,38.27784358]
[1734923716473,38.27784358,182.55,182.49,38.27784358]
[1734923716752,38.27784358,182.53,182.42,20.82168819]
[1734923716946,38.27784358,182.53,182.45,38.27784358]
[1734923718862,38.27784358,182.51,182.43,38.27784358]
[1734923719063,38.27784358,182.47,182.39,38.27784358]
[1734923719755,38.27784358,182.43,182.35,38.27784358]
[1734923720058,38.27784358,182.42,182.34,38.27784358]
[1734923721066,38.27784358,182.44,182.36,38.27784358]
[1734923722358,38.27784358,182.41,182.34,38.27784358]
[1734923722670,38.27784358,182.45,182.38,38.27784358]
[1734923722844,38.27784358,182.43,182.35,38.27784358]
[1734923723036,8.1643,182.5,182.37,38.27784358]
[1734923723037,38.27784358,182.44,182.37,38.27784358]
[1734923723655,38.27784358,182.44,182.38,38.27784358]
[1734923723861,38.27784358,182.43,182.35,38.27784358]
[1734923724161,38.27784358,182.44,182.36,38.27784358]
[1734923724465,38.27784358,182.45,182.38,38.27784358]
[1734923724765,38.27784358,182.44,182.37,38.27784358]
[1734923725061,8.1643,182.5,182.39,38.27784358]
[1734923725062,38.27784358,182.46,182.39,38.27784358]
[1734923725363,38.27784358,182.47,182.39,38.27784358]
[1734923725535,38.27784358,182.46,182.39,38.27784358]
[1734923725735,8.1643,182.5,182.33,14.53353396]
[1734923725736,38.27784358,182.45,182.38,38.27784358]
[1734923725952,38.27784358,182.43,182.35,38.27784358]
[1734923726154,0.12549,182.49,182.33,0.82233396]
[1734923726155,38.27784358,182.4,182.33,38.27784358]
[1734923726356,38.27784358,182.39,182.32,38.27784358]
[1734923726550,38.27784358,182.36,182.29,38.27784358]
[1734923727571,38.27784358,182.35,182.27,38.27784358]
[1734923727864,38.27784358,182.35,182.28,38.27784358]
[1734923728047,38.27784358,182.33,182.25,38.27784358]
[1734923728569,38.27784358,182.32,182.25,38.27784358]
[1734923728939,38.27784358,182.29,182.22,38.27784358]
[1734923729162,8.0087,182.37,182.2,38.27784358]
[1734923729163,38.27784358,182.28,182.2,38.27784358]
[1734923729359,38.27784358,182.29,182.22,38.27784358]
[1734923729566,0.12549,182.36,182.22,38.27784358]
[1734923729567,38.27784358,182.3,182.22,38.27784358]
[1734923729946,38.27784358,182.31,182.24,38.27784358]
[1734923730147,38.27784358,182.32,182.24,38.27784358]
[1734923730757,38.27784358,182.33,182.26,38.27784358]
[1734923731073,38.27784358,182.36,182.28,38.27784358]
[1734923731259,38.27784358,182.36,182.29,38.27784358]
[1734923731566,38.27784358,182.33,182.26,38.27784358]
[1734923732274,6.6636,182.64,182.33,0.12549]
[1734923732447,38.27784358,182.52,182.44,38.27784358]
[1734923732961,38.27784358,182.54,182.46,38.27784358]
[1734923733156,38.27784358,182.5,182.42,38.27784358]
[1734923733676,38.27784358,182.52,182.42,38.27784358]
[1734923733878,38.27784358,182.5,182.42,38.27784358]
[1734923734076,7.7165,182.73,182.48,38.27784358]
[1734923734282,7.7165,182.73,182.56,38.27784358]
[1734923734283,38.27784358,182.64,182.56,38.27784358]
[1734923734461,38.27784358,182.64,182.58,38.27784358]
[1734923734647,38.27784358,182.66,182.58,38.27784358]
[1734923734847,38.27784358,182.68,182.6,38.27784358]
[1734923735072,38.27784358,182.7,182.62,38.27784358]
[1734923735953,6.1848,182.8,182.54,3.01791091]
[1734923735954,38.94630028,182.72,182.64,38.27784358]
[1734923736170,0.6684567,182.72,182.66,38.27784358]
[1734923736368,0.6684567,182.72,182.61,23.776884]
[1734923736685,38.27784358,182.71,182.64,38.27784358]
[1734923737212,0.6684567,182.72,182.66,38.27784358]
[1734923738878,38.27784358,182.69,182.62,38.27784358]
[1734923739074,38.27784358,182.69,182.47,72.25069932]
[1734923739075,58.27784358,182.67,182.58,38.27784358]
[1734923739264,38.27784358,182.65,182.58,38.27784358]
[1734923739470,58.27784358,182.67,182.58,38.27784358]
[1734923740379,58.27784358,182.67,182.6,38.27784358]
[1734923740577,20.0,182.67,182.6,38.27784358]
[1734923740793,20.0,182.67,182.61,38.27784358]
[1734923740963,20.0,182.67,182.62,38.27784358]
[1734923741165,20.0,182.67,182.61,38.27784358]
[1734923741673,20.0,182.67,182.6,38.27784358]
[1734923741873,20.0,182.67,182.62,38.27784358]
[1734923742054,20.0,182.67,182.61,38.27784358]
[1734923742262,20.0,182.67,182.61,44.33842021]
[1734923744483,64.33842021,182.67,182.59,44.33842021]
[1734923745150,64.33842021,182.67,182.6,44.33842021]
[1734923745659,20.0,182.67,182.63,44.33842021]
[1734923745879,20.0,182.67,182.62,44.33842021]
[1734923746257,20.2575412,182.67,182.63,44.33842021]
[1734923746457,20.2575412,182.67,182.65,44.33842021]
[1734923746755,20.2575412,182.67,182.64,44.33842021]
[1734923747073,20.2575412,182.67,182.63,44.33842021]
[1734923747852,20.2575412,182.67,182.6,0.82111798]
[1734923747853,20.2575412,182.67,182.65,44.33842021]
[1734923748064,20.2575412,182.67,182.64,44.33842021]
[1734923748477,20.2575412,182.67,182.63,44.33842021]
[1734923750359,20.2575412,182.67,182.61,44.33842021]
[1734923751374,20.2575412,182.67,182.63,44.33842021]
[1734923752087,20.2575412,182.67,182.62,44.33842021]
[1734923753053,20.2575412,182.67,182.61,44.33842021]
[1734923753259,44.33842021,182.65,182.58,44.33842021]
[1734923753484,20.2575412,182.67,182.53,6.5241]
[1734923753485,64.59596141,182.67,182.59,44.33842021]
[1734923753888,64.59596141,182.67,182.6,44.33842021]
[1734923755491,64.59596141,182.67,182.62,44.33842021]
[1734923755492,20.2575412,182.67,182.62,44.33842021]
[1734923755690,20.2575412,182.67,182.63,44.33842021]
[1734923755859,20.2575412,182.67,182.66,44.33842021]
[1734923756795,15.55654864,182.67,182.66,44.33842021]
[1734923756983,4.70099257,182.67,182.66,68.11530421]
[1734923757180,4.70099257,182.67,182.66,44.33842021]
[1734923757498,4.70099257,182.67,182.62,20.0]
[1734923757703,4.70099257,182.67,182.66,44.33842021]
[1734923758002,0.70652664,182.67,182.66,44.46391021]
[1734923758707,0.70652664,182.67,182.66,68.24079421]
[1734923759288,0.7098209,182.78,182.67,0.12549]
[1734923759601,0.7098209,182.78,182.74,44.33842021]
[1734923760187,0.7098209,182.78,182.72,44.33842021]
[1734923761207,0.7098209,182.78,182.74,44.33842021]
[1734923761583,0.7098209,182.78,182.76,44.33842021]
[1734923761775,0.7098209,182.78,182.77,44.33842021]
[1734923763805,44.33842021,182.87,182.71,14.62879776]
[1734923763806,44.33842021,182.89,182.81,44.33842021]
[1734923764299,38.11870124,182.9,182.82,38.11870124]
[1734923765673,38.11870124,182.88,182.8,38.11870124]
[1734923766311,1.5546,182.92,182.77,38.11870124]
[1734923766483,38.11870124,182.81,182.74,38.11870124]
[1734923767009,38.11870124,182.83,182.75,38.11870124]
[1734923767183,38.11870124,182.84,182.76,38.11870124]
[1734923767602,38.11870124,182.86,182.78,38.11870124]
[1734923768725,38.11870124,182.88,182.8,38.11870124]
[1734923769387,38.11870124,182.86,182.78,38.11870124]
[1734923770490,38.11870124,182.88,182.8,38.11870124]
[1734923770695,38.11870124,182.9,182.82,38.11870124]
[1734923771306,38.11870124,182.88,182.8,38.11870124]
[1734923771716,38.11870124,182.86,182.78,58.11870124]
[1734923772029,1.5546,182.92,182.8,38.11870124]
[1734923772030,38.11870124,182.88,182.8,38.11870124]
[1734923773521,38.11870124,182.87,182.79,38.11870124]
[1734923773715,38.11870124,182.86,182.78,38.11870124]
[1734923774336,38.11870124,182.86,182.79,38.11870124]
[1734923774515,38.11870124,182.87,182.79,38.11870124]
[1734923775638,38.11870124,182.87,182.75,2.17258153]
[1734923775639,38.11870124,182.81,182.73,38.11870124]
[1734923775837,38.11870124,182.77,182.69,38.11870124]
[1734923776017,38.11870124,182.79,182.71,38.11870124]
[1734923776332,2.16316395,182.88,182.77,38.11870124]
[1734923776333,38.11870124,182.85,182.77,38.11870124]
[1734923776505,38.11870124,182.85,182.78,38.11870124]
[1734923776706,38.11870124,182.83,182.76,38.11870124]
[1734923778313,38.11870124,182.83,182.74,38.11870124]
[1734923778515,38.11870124,182.81,182.74,38.11870124]
[1734923780241,6.3939,182.88,182.72,38.11870124]
[1734923780242,38.11870124,182.79,182.72,38.11870124]
[1734923780438,38.11870124,182.79,182.7,38.11870124]
[1734923780643,38.11870124,182.77,182.68,38.11870124]
[1734923780840,38.11870124,182.73,182.66,38.11870124]
[1734923781132,38.11870124,182.73,182.58,14.5133243]
[1734923781133,38.11870124,182.73,182.64,38.11870124]
[1734923781740,6.6415,182.76,182.68,38.11870124]
[1734923782278,38.11870124,182.75,182.68,38.11870124]
[1734923782537,6.6415,182.76,182.7,38.11870124]
[1734923783140,38.11870124,182.79,182.7,38.11870124]
[1734923783310,38.11870124,182.79,182.63,14.63515039]
[1734923783311,38.11870124,182.79,182.72,38.11870124]
[1734923783712,1.5866,182.8,182.74,38.11870124]
[1734923784238,38.11870124,182.79,182.7,38.11870124]
[1734923784657,1.5866,182.8,182.72,38.11870124]
[1734923784941,1.5866,182.8,182.67,0.82084201]
[1734923784942,45.88740124,182.87,182.79,38.11870124]
[1734923785309,38.11870124,182.85,182.79,38.11870124]
[1734923786021,45.88740124,182.87,182.79,38.11870124]
[1734923786231,1.5537,182.87,182.81,38.11870124]
[1734923786443,38.11870124,182.89,182.81,38.11870124]
[1734923787310,0.7098209,182.96,182.87,38.11870124]
[1734923787540,38.11870124,182.95,182.87,38.11870124]
[1734923787920,0.7098209,182.96,182.89,38.11870124]
[1734923788524,0.7098209,182.96,182.85,0.82003229]
[1734923788525,0.7098209,182.96,182.93,38.11870124]
[1734923789038,0.7098209,182.96,182.85,0.82003229]
[1734923789246,0.7098209,182.96,182.91,38.11870124]
[1734923790547,0.7098209,182.96,182.93,38.11870124]
[1734923792121,0.7098209,182.96,182.89,0.8197967]
[1734923792356,0.7098209,182.96,182.92,42.00632169]
[1734923792543,0.7098209,182.96,182.9,42.00632169]
[1734923792721,0.7098209,182.96,182.92,42.00632169]
[1734923793014,0.7098209,182.96,182.93,42.00632169]
[1734923793222,0.7098209,182.96,182.94,42.00632169]
[1734923793823,0.7098209,182.96,182.92,42.00632169]
[1734923794024,6.6018,182.93,182.74,20.0413]
[1734923794224,42.00632169,182.92,182.84,42.00632169]
[1734923794456,6.6018,182.93,182.88,42.00632169]
[1734923794629,1.6529,182.95,182.88,42.00632169]
[1734923795252,42.00632169,182.94,182.86,42.00632169]
[1734923796033,42.00632169,182.94,182.8,3.01293385]
[1734923796034,1.6529,182.95,182.88,42.00632169]
[1734923796233,38.09719731,182.92,182.84,38.09719731]
[1734923796553,38.09719731,182.92,182.85,0.12549]
[1734923796749,38.09719731,182.92,182.84,38.09719731]
[1734923797538,38.09719731,182.92,182.85,23.902374]
[1734923797747,38.09719731,182.94,182.87,0.12549]
[1734923798770,38.09719731,182.94,182.87,24.72227083]
[1734923799061,38.09719731,182.92,182.84,38.91709261]
[1734923799363,38.09719731,182.88,182.8,38.09719731]
[1734923799657,38.09719731,182.88,182.75,13.6798]
[1734923799658,38.09719731,182.86,182.78,38.09719731]
[1734923800156,0.7098209,182.96,182.82,38.09719731]
[1734923800363,38.09719731,182.93,182.86,38.09719731]
[1734923800535,38.09719731,182.95,182.86,38.09719731]
[1734923801260,38.09719731,182.95,182.87,0.81993379]
[1734923802359,38.09719731,182.95,182.88,38.09719731]
[1734923802529,38.09719731,182.95,182.86,38.09719731]
[1734923802726,38.09719731,182.95,182.86,38.91717508]
[1734923803056,38.09719731,182.93,182.86,38.09719731]
[1734923803759,38.09719731,182.92,182.83,38.09719731]
[1734923803961,38.09719731,182.87,182.79,38.09719731]
[1734923804340,38.09719731,182.84,182.76,38.91752992]
[1734923804537,38.09719731,182.83,182.76,38.09719731]
[1734923804858,38.09719731,182.81,182.74,38.09719731]
[1734923805656,38.09719731,182.81,182.73,38.09719731]
[1734923805835,38.09719731,182.78,182.7,40.31884553]
[1734923806240,38.09719731,182.75,182.68,38.09719731]
[1734923806445,38.09719731,182.74,182.67,38.09719731]
[1734923806668,38.09719731,182.73,182.65,38.09719731]
[1734923806834,38.09719731,182.72,182.65,38.09719731]
[1734923807042,38.09719731,182.7,182.63,38.09719731]
[1734923807233,6.4401,182.76,182.62,38.09719731]
[1734923807434,6.4401,182.76,182.65,38.09719731]
[1734923807664,38.09719731,182.77,182.69,38.09719731]
[1734923807835,38.09719731,182.77,182.68,0.12549]
[1734923807836,38.09719731,182.8,182.7,0.82079765]
[1734923808042,1.564,182.86,182.73,38.09719731]
[1734923808235,38.09719731,182.82,182.74,38.09719731]
[1734923808766,1.564,182.86,182.76,38.09719731]
[1734923808965,38.09719731,182.84,182.76,38.09719731]
[1734923809147,39.66119731,182.86,182.78,38.09719731]
[1734923809343,38.09719731,182.86,182.78,38.09719731]
[1734923810445,38.09719731,182.86,182.79,38.09719731]
[1734923810646,38.09719731,182.88,182.8,38.09719731]
[1734923811536,38.09719731,182.86,182.78,38.09719731]
[1734923811741,38.09719731,182.82,182.74,38.09719731]
[1734923811964,7.6699,182.92,182.76,38.09719731]
[1734923811965,38.09719731,182.84,182.76,38.09719731]
[1734923812142,38.09719731,182.86,182.79,38.09719731]
[1734923812776,38.09719731,182.86,182.78,38.09719731]
[1734923813141,38.09719731,182.84,182.76,38.09719731]
[1734923814763,38.09719731,182.86,182.78,38.09719731]
[1734923815957,38.09719731,182.84,182.76,38.09719731]
[1734923816162,7.6699,182.92,182.74,38.09719731]
[1734923816163,38.09719731,182.82,182.74,38.09719731]
[1734923816367,7.6699,182.92,182.72,38.09719731]
[1734923816368,38.09719731,182.8,182.72,38.09719731]
[1734923817776,38.09719731,182.82,182.72,38.09719731]
[1734923818246,38.09719731,182.8,182.72,38.09719731]
[1734923818448,38.09719731,182.78,182.7,38.09719731]
[1734923818654,38.09719731,182.76,182.68,38.09719731]
[1734923819063,38.09719731,182.78,182.7,38.09719731]
[1734923819249,46.24939731,182.8,182.72,38.09719731]
[1734923819458,38.09719731,182.8,182.72,38.09719731]
[1734923820160,38.09719731,182.78,182.7,38.09719731]
[1734923820956,38.09719731,182.76,182.68,38.09719731]
[1734923823877,38.09719731,182.78,182.7,38.09719731]
[1734923824373,38.09719731,182.76,182.68,38.09719731]
[1734923824581,38.09719731,182.74,182.66,38.09719731]
[1734923824952,38.09719731,182.74,182.68,38.09719731]
[1734923825152,38.09719731,182.76,182.68,38.09719731]
[1734923825450,38.09719731,182.78,182.73,20.0]
[1734923825647,38.09719731,182.8,182.73,58.09719731]
[1734923826082,38.09719731,182.79,182.71,38.09719731]
[1734923826287,42.10083028,182.77,182.69,42.10083028]
[1734923826580,8.1522,182.86,182.68,42.10083028]
[1734923826581,42.10083028,182.76,182.68,42.10083028]
[1734923827331,42.10083028,182.7,182.63,48.30513028]
[1734923827953,42.10083028,182.69,182.61,42.10083028]
[1734923828148,42.10083028,182.68,182.58,7.46041637]
[1734923828376,42.10083028,182.66,182.59,42.10083028]
[1734923828761,42.10083028,182.67,182.59,42.10083028]
[1734923828970,7.6823,182.74,182.61,42.10083028]
[1734923829277,42.10083028,182.69,182.61,42.10083028]
[1734923830265,38.20605575,182.67,182.59,38.20605575]
[1734923830463,38.20605575,182.65,182.57,38.20605575]
[1734923830686,38.20605575,182.63,182.56,38.20605575]
[1734923830980,38.20605575,182.63,182.55,38.20605575]
[1734923831198,38.20605575,182.64,182.57,38.20605575]
[1734923832000,38.20605575,182.65,182.57,38.20605575]
[1734923832301,23.776884,182.73,182.57,38.20605575]
[1734923832302,38.20605575,182.64,182.57,38.20605575]
[1734923833799,38.20605575,182.6,182.52,38.20605575]
[1734923833967,38.20605575,182.56,182.49,38.20605575]
[1734923834167,38.20605575,182.55,182.47,55.42155707]
[1734923834379,38.20605575,182.53,182.46,38.20605575]
[1734923834698,38.20605575,182.52,182.44,38.20605575]
[1734923835062,7.9826,182.62,182.4,0.82184387]
[1734923835063,38.20605575,182.5,182.42,38.20605575]
[1734923835491,38.20605575,182.48,182.41,38.20605575]
[1734923835800,38.20605575,182.47,182.4,38.20605575]
[1734923836008,38.20605575,182.46,182.38,44.86455575]
[1734923836205,38.20605575,182.44,182.37,38.20605575]
[1734923836395,38.20605575,182.45,182.37,38.20605575]
[1734923836700,1.5948,182.51,182.41,38.20605575]
[1734923836876,38.20605575,182.52,182.45,38.20605575]
[1734923837081,1.5948,182.57,182.42,0.82208544]
[1734923837274,38.20605575,182.48,182.41,38.20605575]
[1734923837485,38.20605575,182.48,182.4,38.20605575]
[1734923837887,38.20605575,182.47,182.39,38.20605575]
[1734923838070,6.5334,182.49,182.37,38.20605575]
[1734923838272,6.5334,182.55,182.42,38.20605575]
[1734923838472,38.20605575,182.51,182.44,38.20605575]
[1734923839677,6.5334,182.55,182.44,38.20605575]
[1734923839678,38.20605575,182.53,182.44,38.20605575]
[1734923839874,38.20605575,182.55,182.46,38.20605575]
[1734923840074,38.20605575,182.57,182.48,38.20605575]
[1734923840704,38.20605575,182.55,182.48,38.20605575]
[1734923841405,38.20605575,182.58,182.5,38.20605575]
[1734923841777,38.20605575,182.62,182.54,38.20605575]
[1734923843076,38.20605575,182.6,182.52,38.20605575]
[1734923843278,38.20605575,182.58,182.5,38.20605575]
[1734923843812,6.2235,182.68,182.48,38.20605575]
[1734923843813,38.20605575,182.56,182.48,38.20605575]
[1734923843977,38.20605575,182.54,182.46,40.38675964]
[1734923844302,38.20605575,182.54,182.46,38.20605575]
[1734923846440,38.20605575,182.56,182.49,38.20605575]
[1734923846741,38.20605575,182.6,182.51,38.20605575]
[1734923846896,38.20605575,182.62,182.56,20.0]
[1734923847097,38.20605575,182.66,182.58,38.20605575]
[1734923847332,38.20605575,182.66,182.59,38.20605575]
[1734923847498,38.20605575,182.66,182.58,38.20605575]
[1734923847897,38.20605575,182.65,182.58,38.20605575]
[1734923848133,1.572,182.69,182.61,38.20605575]
[1734923848134,38.20605575,182.69,182.61,38.20605575]
[1734923848614,38.20605575,182.68,182.62,38.20605575]
[1734923849022,38.20605575,182.68,182.6,38.20605575]
[1734923849225,38.20605575,182.62,182.54,38.20605575]
[1734923849403,23.776884,182.72,182.56,38.20605575]
[1734923849604,38.20605575,182.65,182.58,38.20605575]
[1734923850831,6.1863,182.73,182.53,19.9147]
[1734923850832,38.20605575,182.69,182.62,38.20605575]
[1734923850996,6.1863,182.73,182.53,6.2184]
[1734923850997,38.20605575,182.67,182.6,38.20605575]
[1734923851199,38.20605575,182.65,182.58,38.20605575]
[1734923851416,38.20605575,182.67,182.6,38.20605575]
[1734923851622,6.1863,182.73,182.54,14.51666064]
[1734923851623,38.20605575,182.69,182.54,14.51666064]
[1734923851833,38.20605575,182.71,182.62,38.20605575]
[1734923852247,38.20605575,182.71,182.64,38.20605575]
[1734923852403,38.20605575,182.75,182.68,38.20605575]
[1734923852735,38.20605575,182.77,182.68,38.20605575]
[1734923853030,38.20605575,182.79,182.72,38.20605575]
[1734923854243,0.7098209,182.96,182.76,38.20605575]
[1734923854400,38.20605575,182.86,182.78,38.20605575]
[1734923854603,38.20605575,182.84,182.76,38.20605575]
[1734923855333,38.20605575,182.82,182.74,38.20605575]
[1734923855838,38.20605575,182.82,182.72,40.36659307]
[1734923856134,38.20605575,182.8,182.7,38.20605575]
[1734923856342,38.20605575,182.76,182.68,40.4196759]
[1734923856517,38.20605575,182.74,182.66,38.20605575]
[1734923857738,38.20605575,182.76,182.68,38.20605575]
[1734923858108,7.7948,182.84,182.7,38.20605575]
[1734923858335,7.7948,182.84,182.72,38.20605575]
[1734923858336,38.20605575,182.79,182.72,38.20605575]
[1734923858832,38.20605575,182.81,182.72,38.20605575]
[1734923859230,38.20605575,182.81,182.74,38.20605575]
[1734923860558,38.20605575,182.85,182.77,20.0]
[1734923860713,6.1558,182.95,182.8,38.20605575]
[1734923860914,38.20605575,182.89,182.8,38.20605575]
[1734923861437,38.20605575,182.89,182.82,38.20605575]
[1734923861643,38.20605575,182.89,182.8,2.16184253]
[1734923861944,6.1558,182.95,182.8,38.20605575]
[1734923862111,38.20605575,182.88,182.8,38.20605575]
[1734923862525,38.20605575,182.88,182.78,38.20605575]
[1734923862716,38.20605575,182.88,182.77,0.82048313]
[1734923862717,38.20605575,182.88,182.8,38.20605575]
[1734923862931,38.20605575,182.88,182.78,38.20605575]
[1734923863128,38.20605575,182.86,182.76,58.20605575]
[1734923863433,38.20605575,182.87,182.78,38.20605575]
[1734923863840,38.20605575,182.85,182.76,58.20605575]
[1734923864139,38.20605575,182.79,182.7,38.20605575]
[1734923864324,38.20605575,182.77,182.7,38.20605575]
[1734923864715,38.20605575,182.79,182.72,38.20605575]
[1734923865047,38.20605575,182.81,182.74,38.20605575]
[1734923865418,38.20605575,182.85,182.77,20.12549]
[1734923865622,38.20605575,182.85,182.78,38.20605575]
[1734923868326,38.20605575,182.89,182.81,0.12549]
[1734923868926,38.20605575,182.89,182.82,38.20605575]
[1734923870016,0.7098209,182.96,182.8,38.20605575]
[1734923870017,38.20605575,182.87,182.8,38.20605575]
[1734923870315,38.20605575,182.87,182.79,6.4712]
[1734923870515,38.20605575,182.87,182.8,38.33154575]
[1734923870746,38.20605575,182.87,182.8,39.15181607]
[1734923871131,38.20605575,182.87,182.8,38.20605575]
[1734923871329,38.20605575,182.85,182.79,6.4712]
[1734923871645,38.20605575,182.86,182.79,6.4712]
[1734923872147,38.20605575,182.88,182.8,38.20605575]
[1734923872639,38.20605575,182.87,182.8,38.20605575]
[1734923872944,38.20605575,182.86,182.79,6.4712]
[1734923873447,38.20605575,182.87,182.8,0.12549]
[1734923873617,0.7098209,182.96,182.8,38.33154575]
[1734923873618,38.20605575,182.88,182.8,38.33154575]
[1734923874346,38.20605575,182.87,182.8,38.20605575]
[1734923874657,38.20605575,182.86,182.79,44.67725575]
[1734923874948,38.20605575,182.86,182.79,6.4712]
[1734923875143,38.20605575,182.87,182.8,38.20605575]
[1734923875323,0.7098209,182.96,182.82,38.20605575]
[1734923875324,38.20605575,182.89,182.82,38.20605575]
[1734923876050,38.20605575,182.86,182.79,44.67725575]
[1734923876249,38.20605575,182.87,182.8,38.20605575]
[1734923876450,38.20605575,182.87,182.79,44.67725575]
[1734923877058,38.20605575,182.86,182.79,6.4712]
[1734923877364,38.20605575,182.83,182.76,1.5895]
[1734923878131,38.20605575,182.82,182.76,1.5895]
[1734923878457,38.20605575,182.83,182.76,1.5895]
[1734923878766,38.20605575,182.8,182.74,6.018]
[1734923879163,38.20605575,182.82,182.74,45.04466991]
[1734923879347,38.20605575,182.83,182.76,38.20605575]
[1734923879524,38.20605575,182.83,182.77,0.12549]
[1734923879876,38.20605575,182.85,182.77,38.33154575]
[1734923880847,38.20605575,182.85,182.77,38.20605575]
[1734923881218,38.20605575,182.83,182.77,20.0]
[1734923881624,38.20605575,182.83,182.75,38.33154575]
[1734923882155,23.776884,182.95,182.75,0.12549]
[1734923882156,42.07884797,182.82,182.75,0.12549]
[1734923882324,42.07884797,182.84,182.77,0.12549]
[1734923882653,42.07884797,182.88,182.8,42.07884797]
[1734923882955,42.07884797,182.89,182.82,42.20433797]
[1734923883458,42.07884797,182.88,182.82,0.12549]
[1734923883861,42.07884797,182.87,182.8,42.07884797]
[1734923884779,42.07884797,182.89,182.81,43.02461799]
[1734923884969,42.07884797,182.87,182.79,42.07884797]
[1734923885152,42.07884797,182.84,182.76,42.07884797]
[1734923885334,42.07884797,182.82,182.74,48.09684797]
[1734923885537,42.07884797,182.82,182.76,42.07884797]
[1734923885739,42.07884797,182.82,182.77,0.12549]
[1734923886266,42.07884797,182.88,182.76,42.07884797]
[1734923886267,42.07884797,182.84,182.76,42.07884797]
[1734923887399,42.07884797,182.88,182.74,6.018]
[1734923887400,42.07884797,182.8,182.74,6.018]
[1734923888057,42.07884797,182.8,182.73,2.1642319]
[1734923888273,42.07884797,182.8,182.72,42.07884797]
[1734923888472,42.07884797,182.8,182.71,1.6282]
[1734923888685,1.5482,182.87,182.65,2.38422197]
[1734923888686,42.07884797,182.74,182.65,2.38422197]
[1734923888890,42.07884797,182.74,182.64,6.4879]
[1734923888891,42.07884797,182.72,182.64,48.56674797]
[1734923889167,42.07884797,182.72,182.64,50.76929265]
[1734923889368,42.07884797,182.7,182.64,8.69044468]
[1734923889571,42.07884797,182.7,182.64,6.4879]
[1734923890144,6.5388,182.85,182.64,7.30891341]
[1734923890351,38.17999652,182.78,182.71,38.17999652]
[1734923890544,38.17999652,182.8,182.72,0.12549]
[1734923890751,38.17999652,182.82,182.75,0.12549]
[1734923892783,38.17999652,182.82,182.74,20.82049866]
[1734923892987,38.17999652,182.8,182.71,38.17999652]
[1734923893161,38.17999652,182.8,182.72,0.82060823]
[1734923894357,38.17999652,182.8,182.73,38.30548652]
[1734923895681,38.17999652,182.8,182.74,20.0]
[1734923896757,38.17999652,182.8,182.71,41.2031251]
[1734923897272,38.17999652,182.76,182.69,38.17999652]
[1734923897590,38.17999652,182.74,182.67,40.3292761]
[1734923897894,38.17999652,182.74,182.68,0.12549]
[1734923898051,38.17999652,182.74,182.68,3.64339162]
[1734923898484,38.17999652,182.76,182.69,39.12632924]
[1734923899968,38.17999652,182.8,182.74,0.12549]
[1734923900290,38.17999652,182.82,182.74,0.94600968]
[1734923900587,38.17999652,182.82,182.76,20.0]
[1734923901675,1.6666,182.94,182.77,6.27319]
[1734923901856,0.7098209,182.96,182.85,20.0]
[1734923902060,38.17999652,182.88,182.83,0.12549]
[1734923902363,38.17999652,182.87,182.82,0.82017475]
[1734923902549,38.17999652,182.86,182.79,39.0001397]
[1734923902753,38.17999652,182.86,182.79,38.17999652]
[1734923902981,38.17999652,182.86,182.8,20.0]
[1734923903891,38.17999652,182.84,182.77,46.58359175]
[1734923904190,38.17999652,182.86,182.78,0.12549]
[1734923904371,38.17999652,182.86,182.79,39.00027398]
[1734923904572,38.17999652,182.88,182.82,0.12549]
[1734923905074,38.17999652,182.9,182.82,0.12549]
[1734923905282,38.17999652,182.9,182.84,20.0]
[1734923906582,38.17999652,182.9,182.82,2.37825569]
[1734923906888,38.17999652,182.9,182.84,20.0]
[1734923908494,38.17999652,182.9,182.81,41.19437414]
[1734923908893,38.17999652,182.92,182.83,58.17999652]
[1734923909189,38.17999652,182.94,182.86,38.17999652]
[1734923909397,38.88981742,182.96,182.89,0.12549]
[1734923909565,0.7098209,182.96,182.9,38.17999652]
[1734923910770,0.7098209,182.96,182.92,38.17999652]
[1734923910972,0.7098209,182.96,182.92,20.0]
[1734923912276,0.7098209,182.96,182.92,58.17999652]
[1734923913180,0.7098209,182.96,182.93,38.17999652]
[1734923913984,0.7098209,182.96,182.94,38.17999652]
[1734923914977,38.17999652,183.03,182.95,38.17999652]
[1734923915168,38.17999652,183.02,182.95,38.17999652]
[1734923916099,38.17999652,183.04,182.97,38.17999652]
[1734923916400,41.97726973,183.03,182.96,41.97726973]
[1734923916572,41.97726973,183.05,182.97,41.97726973]
[1734923916898,41.97726973,183.04,182.97,41.97726973]
[1734923917902,41.97726973,183.03,182.95,61.97726973]
[1734923918270,6.5859,183.09,182.97,41.97726973]
[1734923918469,41.97726973,183.04,182.96,41.97726973]
[1734923918803,41.97726973,183.03,182.96,41.97726973]
[1734923918971,1.6519,183.1,182.95,64.20678202]
[1734923918972,41.97726973,183.02,182.95,64.20678202]
[1734923919169,41.97726973,183.02,182.95,22.22951229]
[1734923919796,41.97726973,183.01,182.93,41.97726973]